Cogmind - Beta 13 @@@ ROGUE MODE // 2024.05.26 @ 21:54:31 Player: dp-fld Result: Self-destructed Performance ------------- Evolutions (3) 1500 Regions Visited (10) 2000 Robots Destroyed (157) 785 Value Destroyed (4103) 4103 Prototype IDs (54) 1080 Alien Tech Used (0) 0 Bonus (514) 514 TOTAL SCORE: 9982 Bonus ------- High Alert Combat Kills 290 Follower Combat Kills 71 Aligned with FarCom 300 Friendly Fire -147 Cogmind --------- Core Integrity 581/700 Matter 80/300 Energy 300/300 System Corruption 18% Temperature Cool (0) Movement Treading (160) Location -7/Factory Parts ------- > --- POWER (1) -------- Enhanced Nuclear Core > --- PROPULSION (4) --- Light Treads Light Treads Light Treads > --- UTILITY (6) ------ Cooling System Large Storage Unit Machine Analyzer Hacking Suite > --- WEAPON (2) ------- Heavy Particle Gun Advanced Assault Cannon (fused) > --- INVENTORY (15) --- Enhanced Nuclear Core Light Angular Momentum Engine Cooling System 0b10 Alert Chip Improved Utility Shielding Improved Light Armor Plating Improved Light Armor Plating Hacking Suite Improved Trap Extractor (0/6) Advanced Beam Cannon Gauss Rifle Advanced Assault Cannon Advanced Assault Cannon Improved Grenade Launcher Great Axe Peak State ------------ > --- POWER ------------ Enhanced Nuclear Core > --- PROPULSION ------- Light Treads Light Treads Light Treads Light Treads > --- UTILITY ---------- Cooling System Huge Storage Unit Structural Scanner Machine Analyzer Improved Medium Armor Plating Hacking Suite > --- WEAPON ----------- Advanced Beam Rifle Advanced Beam Cannon > --- INVENTORY -------- Enhanced Nuclear Core Enhanced Nuclear Core Light Angular Momentum Engine Light Treads Light Treads Gravmag System Gravmag System Cooling System Cooling System Large Storage Unit Experimental Sensor Array 0b10 Alert Chip Improved Utility Shielding Hardened Medium Armor Plating Improved Light Armor Plating Hacking Suite Heavy Particle Gun Precision Beam Rifle Advanced Beam Cannon Gauss Rifle Flak Gun Rocket Launcher Improved Grenade Launcher Datajack Great Axe [Rating: 38] Favorites ----------- Power Light Nuclear Core Engine Cooled Ion Engine Power Core Light Nuclear Core Propulsion Light Treads Treads Light Treads Leg Aluminum Leg Utility Huge Storage Unit Device Structural Scanner Storage Huge Storage Unit Processor Machine Analyzer Hackware Hacking Suite Protection Light Armor Plating Weapon Advanced Beam Cannon Energy Gun Advanced Beam Rifle Energy Cannon Advanced Beam Cannon Ballistic Gun Assault Rifle Ballistic Cannon Advanced Assault Cannon Launcher Rocket Launcher Impact Weapon Flail Slashing Weapon Great Axe Special Melee Weapon Datajack Build | -11 -10 -10 -9 -9 -9 -8 -8 -7 -7 -7 ------- Run | Yrd Mat Min Mat Min Exi Min Mat Fac Was Fac Slots Evolved 6 | . . . 2 . . . 2 2 . . Power . | . . . . . . . . . . . Propulsion 2 | . . . 1 . . . 1 . . . Utility 4 | . . . 1 . . . 1 2 . . Weapon . | . . . . . . . . . . . Parts Attached 182 | . 18 8 57 23 4 . 43 18 2 9 Power 11 | . 2 1 3 1 . . 3 1 . . Engine 6 | . 2 . 3 . . . 1 . . . Core 5 | . . 1 . 1 . . 2 1 . . Reactor . | . . . . . . . . . . . Propulsion 60 | . 6 3 23 4 . . 14 8 1 1 Treads 50 | . 3 . 19 4 . . 14 8 1 1 Leg 10 | . 3 3 4 . . . . . . . Wheel . | . . . . . . . . . . . Hover . | . . . . . . . . . . . Flight . | . . . . . . . . . . . Utility 39 | . 2 . 10 8 1 . 9 5 1 3 Device 21 | . 1 . 6 6 . . 7 . . 1 Storage 4 | . . . 2 1 . . . . 1 . Processor 2 | . . . 1 . . . . 1 . . Hackware 1 | . . . . . . . . 1 . . Protection 11 | . 1 . 1 1 1 . 2 3 . 2 Artifact . | . . . . . . . . . . . Weapon 72 | . 8 4 21 10 3 . 17 4 . 5 Energy Gun 10 | . 1 1 1 . . . 5 . . 2 Energy Cannon 15 | . . . 4 4 1 . 4 2 . . Ballistic Gun 15 | . 3 1 8 . . . 3 . . . Ballistic Cannon 2 | . . . . . . . . . . 2 Launcher 19 | . 1 2 8 4 1 . 3 . . . Special Weapon . | . . . . . . . . . . . Impact Weapon 6 | . 3 . . 2 . . 1 . . . Slashing Weapon 4 | . . . . . . . 1 2 . 1 Piercing Weapon . | . . . . . . . . . . . Special Melee Weapon 1 | . . . . . 1 . . . . . Unidentified Prototypes 6 | . . . 2 . . . 3 1 . . Parts Lost 18 | . 2 1 6 3 . . 2 1 2 1 Power 2 | . 1 1 . . . . . . . . Propulsion 5 | . . . 1 1 . . . 1 2 . Utility 8 | . 1 . 4 1 . . 1 . . 1 Weapon 3 | . . . 1 1 . . 1 . . . Highest Loss Streak 3 | . 1 1 1 3 . . 2 1 2 1 To Critical Strikes . | . . . . . . . . . . . Average Slot Usage (%) 98 | . 97 97 96 99 98 100 99 99 92 92 Engine 4 | . 13 1 8 1 . . 8 5 . . Core 5 | . . 10 2 9 11 11 . 1 7 7 Treads 30 | . 12 11 28 33 33 33 36 29 26 23 Leg 2 | . 15 16 4 . . . . . . . Device 13 | . 9 14 12 13 11 11 17 15 14 15 Storage 10 | . 14 14 11 11 11 11 9 7 7 7 Processor 1 | . . . 3 . . . . 7 7 7 Protection 6 | . 2 . 2 7 10 11 8 7 4 7 Energy Gun 2 | . 4 8 1 . . . 4 7 6 7 Energy Cannon 9 | . . . 11 13 . 11 10 4 7 . Ballistic Gun 2 | . 15 2 8 . . . 1 . . . Launcher 2 | . . 14 . 5 . 11 1 . . . Impact Weapon 2 | . 7 3 . 2 11 . . . . . Naked Turns . | . . . . . . . . . . . Heaviest Build 108 | 12 15 19 98 100 97 97 108 105 44 48 Greatest Support 80 | 20 40 40 60 60 60 60 80 80 80 60 Greatest Overweight (x) 1 | . . 1 1 1 1 1 1 1 . . Average Overweight (x) . | . . . . 1 1 1 1 1 . . Largest Inventory Capacity 25 | 8 8 8 25 25 25 25 25 25 15 15 Average Capacity 22 | 8 8 8 20 25 25 25 25 25 15 15 Most Carried 25 | 6 8 8 25 25 25 25 25 25 15 15 Average Carried 22 | 6 7 7 19 24 23 25 24 24 14 14 Final Capacity 25 | 8 8 8 25 25 25 25 25 25 15 15 Final Carried 25 | 6 8 8 25 25 25 25 25 25 15 15 Class Distribution -------------------- 75% | Scavenger-Mutant 13% | Mutant 7% | Scavenger-Skirmisher 3% | Scavenger-Assassin Dominant Class ---------------- Mutant | -10/Materials Scavenger-Mutant | -10/Mines Scavenger-Mutant | -9/Materials Scavenger-Mutant | -9/Mines Scavenger-Mutant | -9/Exiles Scavenger-Mutant | -8/Mines Scavenger-Mutant | -8/Materials Scavenger-Skirmisher | -7/Factory Scavenger-Skirmisher | -7/Waste Scavenger-Skirmisher | -7/Factory Resources | -11 -10 -10 -9 -9 -9 -8 -8 -7 -7 -7 ----------- Run | Yrd Mat Min Mat Min Exi Min Mat Fac Was Fac Matter Collected 2939 | 200 425 65 1086 369 . 10 561 159 . 64 Remotely . | . . . . . . . . . . . Salvage Created 5660 | . 896 84 1906 321 . 21 1451 809 . 172 Parts 307 | . 36 9 139 11 . 8 63 34 . 7 Haulers Intercepted 14 | . 2 . 5 . . . 6 1 . . Recyclers Shooed 8 | . 3 . 2 . . . 2 1 . . Parts Field Recycled . | . . . . . . . . . . . Retrieved Matter . | . . . . . . . . . . . Parts Self-Destructed . | . . . . . . . . . . . Prevented . | . . . . . . . . . . . Kills | -11 -10 -10 -9 -9 -9 -8 -8 -7 -7 -7 ------- Run | Yrd Mat Min Mat Min Exi Min Mat Fac Was Fac Combat Hostiles Destroyed 113 | . 14 6 44 3 . 4 25 13 . 4 Melee 5 | . 5 . . . . . . . . . Guns 36 | . 5 . 17 . . . 4 6 . 4 Cannons 30 | . . . 9 3 . . 13 5 . . AOE 35 | . 2 6 18 . . 4 5 . . . Classes Destroyed 15 | . 8 . 3 . . . 1 3 . . Worker 6 | . 1 . 1 3 . . 1 . . . Builder 4 | . 2 . 2 . . . . . . . Tunneler 3 | . 1 . 1 1 . . . . . . Hauler 14 | . 2 . 5 . . . 6 1 . . Recycler 9 | . 3 . 4 1 . . 1 . . . Mechanic 2 | . . . . . . . . 2 . . Operator 4 | . 2 . 2 . . . . . . . Watcher 1 | . . . . . . . 1 . . . Swarmer 30 | . 3 3 13 . . 4 6 . . 1 Grunt 62 | . 11 3 22 4 . . 12 9 . 1 Brawler 4 | . . . 2 . . . 1 . . 1 Duelist 1 | . . . . . . . . 1 . . Protector 1 | . . . 1 . . . . . . . Sentry 13 | . . . 6 . . . 6 . . 1 Programmer 3 | . . . . . . . . 3 . . Best Kill Streak 11 | . 4 6 11 3 . 4 6 4 . 3 Combat Bots Only 7 | . 3 6 7 3 . 4 6 4 . 3 Max Kills in Single Turn 5 | . 2 2 4 1 . 4 5 1 . 1 Gunslinging . | . . . . . . . . . . . Exploded 4 | . 2 2 3 . . 4 3 . . . Melee 1 | . 1 . . . . . . . . . Uniques/NPCs Destroyed . | . . . . . . . . . . . Combat | -11 -10 -10 -9 -9 -9 -8 -8 -7 -7 -7 -------- Run | Yrd Mat Min Mat Min Exi Min Mat Fac Was Fac Hostile Shots Fired 634 | . 114 17 150 39 . 12 110 81 3 108 Missed 185 | . 35 4 39 8 . 4 29 21 1 44 Damage Taken 6316 | . 944 170 1317 579 . 68 1477 960 81 720 Core 676 | . 148 39 99 89 . 3 179 18 46 55 Absorbed by Shields . | . . . . . . . . . . . Regen/Repaired (Parts) 410 | . . . . . . . 273 137 . . Core Remaining (%) 61 | 100 . 25 . . . 52 67 . . . Volleys Fired 368 | . 50 8 95 52 . 1 88 52 . 22 Largest 2 | . 2 1 2 2 . 2 2 2 . 2 Hottest 136 | . 80 30 136 136 . 101 136 129 . 103 Shots Fired 675 | . 74 8 187 82 . 2 176 103 1 42 Gun 327 | . 73 . 126 . . . 55 52 . 21 Cannon 318 | . . . 49 78 . 1 117 51 1 21 Launcher 30 | . 1 8 12 4 . 1 4 . . . Special . | . . . . . . . . . . . Kinetic 210 | . 71 . 104 . . . 14 . . 21 Thermal 433 | . . . 71 78 . 1 158 103 1 21 Explosive 30 | . 1 8 12 4 . 1 4 . . . Electromagnetic 2 | . 2 . . . . . . . . . Robot Hit Streak 15 | . 14 3 10 9 . 1 15 15 . 9 Robot Miss Streak 6 | . 3 3 2 1 . 1 6 3 . 2 Penetration Max . | . . . . . . . . . . . Secondary Targets 1 | . . . 1 . . . . . . . Max Gunslinging Chain 1 | . . . 1 . . . . . . . Shots Hit Robots 460 | . 86 5 116 23 4 1 129 67 . 29 Core Hits 210 | . 27 9 76 9 . 4 51 27 . 7 Critical Kills 7 | . 3 . . . . . 3 1 . . Critical Parts Destroyed 4 | . 3 . 1 . . . . . . . Critical Strikes 18 | . 6 . 1 . . . 8 2 . 1 Burn 7 | . . . . . . . 5 1 . 1 Meltdown 4 | . . . . . . . 3 1 . . Destroy 1 | . . . 1 . . . . . . . Smash 6 | . 6 . . . . . . . . . Melee Attacks 69 | . 44 . . 9 4 . 6 4 . 2 Impact 56 | . 44 . . 9 . . 3 . . . Slashing 9 | . . . . . . . 3 4 . 2 Piercing . | . . . . . . . . . . . Sneak Attacks 15 | . 7 . . 2 4 . 2 . . . Combat Hostiles . | . . . . . . . . . . . Follow-up Attacks . | . . . . . . . . . . . Damage Inflicted 12074 | . 1893 410 3493 677 . 250 2992 1647 . 712 Guns 3829 | . 628 . 1300 . . . 747 825 . 329 Cannons 4116 | . . . 686 476 . 23 1726 822 . 383 Explosions 2616 | . 113 410 1507 . . 227 359 . . . Melee 1437 | . 1144 . . 160 . . 133 . . . Ramming 76 | . 8 . . 41 . . 27 . . . Kinetic 2196 | . 613 . 1031 . . . 169 . . 383 Thermal 5884 | . . . 1105 476 . 23 2304 1647 . 329 Explosive 2466 | . 113 410 1357 . . 227 359 . . . Electromagnetic 15 | . 15 . . . . . . . . . Impact 1372 | . 1144 . . 160 . . 68 . . . Slashing 65 | . . . . . . . 65 . . . Piercing . | . . . . . . . . . . . Highest Corruption 18 | . 2 2 1 1 1 1 . 3 16 18 Average Corruption 1 | . 2 2 1 1 1 1 . 2 10 16 Corruption Purged . | . . . . . . . . . . . Corruption Blocked . | . . . . . . . . . . . Effects 121 | . 15 2 18 44 12 . . 7 6 17 Message Errors 32 | . 3 . 6 14 4 . . . 1 4 Matter Fused 29 | . 4 . 4 14 2 . . 3 1 1 Heat Flow Errors 23 | . 3 . 2 6 3 . . 2 2 5 Energy Discharges 9 | . . 2 1 4 . . . . . 2 Parts Rejected 3 | . . . 1 . . . . . 1 1 Parts Fused 4 | . . . . 3 . . . . . 1 Data Loss (minor) 5 | . 1 . . 1 1 . . 1 . 1 Data Loss (major) 5 | . . . 1 . 2 . . 1 . 1 Misfires 6 | . 3 . 1 1 . . . . 1 . Alerts 1 | . . . . 1 . . . . . . Weapon Failures 4 | . 1 . 2 . . . . . . 1 Overload Shots . | . . . . . . . . . . . Overflow Damage 408 | . 231 6 74 30 . . 33 12 . 22 Projectiles 43 | . . . . 1 . . 8 12 . 22 Explosions 80 | . . 6 74 . . . . . . . Melee 285 | . 231 . . 29 . . 25 . . . Knockbacks 7 | . 4 . . . . . . . . 3 Impact 4 | . 4 . . . . . . . . . Kinetic 3 | . . . . . . . . . . 3 Secondary . | . . . . . . . . . . . Self-Inflicted Damage 289 | . 47 40 53 20 . 9 120 . . . Shots 9 | . 1 1 2 1 . 1 3 . . . Rammed 4 | . . . 1 2 . . 1 . . . Targets Rammed 7 | . 1 . 1 4 . . 1 . . . Kicked 1 | . 1 . . . . . . . . . Crushed 2 | . . . . 2 . . . . . . Highest Temperature 375 | . 258 10 375 278 276 45 235 109 183 254 Average Temperature 75 | . 90 5 82 89 110 26 54 30 87 80 Received Heat Transfer 2439 | . 483 39 495 213 . . 603 450 . 156 Effects 3 | . . . . 3 . . . . . . Interference 3 | . . . . 3 . . . . . . Siege Activations . | . . . . . . . . . . . Robots Corrupted . | . . . . . . . . . . . Combat Hostiles . | . . . . . . . . . . . Parts Fried 8 | . 8 . . . . . . . . . Impact Corruptions 15 | . 14 . . 1 . . . . . . Robots Melted 5 | . . . . . . . 3 2 . . Combat Hostiles 5 | . . . . . . . 3 2 . . Parts Melted 24 | . . . 2 3 . . 13 6 . . Heat Transferred 10753 | . . . 1799 814 . 37 4662 2775 . 666 Parts Sabotaged . | . . . . . . . . . . . Parts Stolen . | . . . . . . . . . . . Parts Stripped . | . . . . . . . . . . . Power Chain Reactions . | . . . . . . . . . . . Alert | -11 -10 -10 -9 -9 -9 -8 -8 -7 -7 -7 ------- Run | Yrd Mat Min Mat Min Exi Min Mat Fac Was Fac Peak Influence 945 | . 340 301 945 389 . 116 356 217 51 130 Initial 349 | . . 132 117 349 . . 44 69 36 21 Average 143 | . 152 281 547 42 . 108 108 83 38 58 Maximum Alert Level 3 | . 1 1 3 1 . . 1 1 . . Low Security (%) 75 | 100 58 10 7 91 . 100 85 98 100 100 Level 1 12 | . 41 89 8 8 . . 14 1 . . Level 2 9 | . . . 67 . . . . . . . Level 3 2 | . . . 15 . . . . . . . Level 4 . | . . . . . . . . . . . Level 5 . | . . . . . . . . . . . High Security . | . . . . . . . . . . . Max Security . | . . . . . . . . . . . Squads Dispatched 22 | . 5 . 10 . . . 2 3 . 2 Investigation 7 | . 3 . 3 . . . 1 . . . Extermination 3 | . . . . . . . . 2 . 1 Reinforcement 8 | . 2 . 4 . . . 1 1 . . Assault 3 | . . . 3 . . . . . . . Garrison 1 | . . . . . . . . . . 1 Intercept . | . . . . . . . . . . . Searches Triggered . | . . . . . . . . . . . Construction Impeded 1 | . . . 1 . . . . . . . Haulers Reinforced 1 | . . . . . . . . 1 . . Active Scanning Responses . | . . . . . . . . . . . Cargo Convoy Interrupts . | . . . . . . . . . . . Stealth | -11 -10 -10 -9 -9 -9 -8 -8 -7 -7 -7 --------- Run | Yrd Mat Min Mat Min Exi Min Mat Fac Was Fac Distress Signals 16 | . 2 . 8 . . . 5 1 . . Communications Jammed . | . . . . . . . . . . . Distress Signals . | . . . . . . . . . . . Times Spotted 204 | . 36 6 71 8 . 4 44 23 6 6 Peak Tracking Total 7 | . 6 6 5 5 . 4 7 6 6 3 Tactical Retreats 11 | . 4 . 4 . . . 2 1 . . Traps | -11 -10 -10 -9 -9 -9 -8 -8 -7 -7 -7 ------- Run | Yrd Mat Min Mat Min Exi Min Mat Fac Was Fac Traps Triggered 9 | . 2 . 2 . . . 2 1 . 2 Indirectly . | . . . . . . . . . . . Trap Hack Attempts . | . . . . . . . . . . . Triggered . | . . . . . . . . . . . Disarmed . | . . . . . . . . . . . Reprogrammed . | . . . . . . . . . . . Reused . | . . . . . . . . . . . Traps Extracted . | . . . . . . . . . . . Installed . | . . . . . . . . . . . Triggered . | . . . . . . . . . . . Machines | -11 -10 -10 -9 -9 -9 -8 -8 -7 -7 -7 ---------- Run | Yrd Mat Min Mat Min Exi Min Mat Fac Was Fac Machines Disabled 8 | . 1 . 4 . . . 2 1 . . Max in Single Turn 3 | . 1 . 3 . . . 1 1 . . Machines Repaired . | . . . . . . . . . . . Machines Dismantled . | . . . . . . . . . . . Machines Sabotaged . | . . . . . . . . . . . Overloaded Fab Kills . | . . . . . . . . . . . Hacking | -11 -10 -10 -9 -9 -9 -8 -8 -7 -7 -7 --------- Run | Yrd Mat Min Mat Min Exi Min Mat Fac Was Fac Machines Accessed 36 | . 8 . 6 . 1 . 13 6 . 2 Terminals 25 | . 6 . 5 . . . 10 3 . 1 Fabricators 1 | . . . . . . . . . . 1 Repair Stations 4 | . . . . . . . 2 2 . . Recycling Units 2 | . 2 . . . . . . . . . Scanalyzers 2 | . . . 1 . . . 1 . . . Garrison Access 1 | . . . . . . . . 1 . . Total Hacks 110 | . 30 . 23 . 1 . 41 12 . 3 Successful 49 | . 9 . 10 . 1 . 24 4 . 1 Failed 60 | . 21 . 12 . . . 17 8 . 2 Catastrophic 12 | . 4 . 3 . . . 2 2 . 1 Database Lockouts 1 | . . . 1 . . . . . . . Manual 50 | . 19 . 14 . 1 . 15 1 . . Terminals 83 | . 24 . 19 . . . 32 7 . 1 Fabricators 2 | . . . . . . . . . . 2 Repair Stations 9 | . . . . . . . 5 4 . . Recycling Units 6 | . 6 . . . . . . . . . Scanalyzers 8 | . . . 4 . . . 4 . . . Garrison Access 1 | . . . . . . . . 1 . . Terminal Hacks 31 | . 7 . 8 . 1 . 13 2 . . Robot Analysis 7 | . 3 . 1 . . . 3 . . . Prototype ID Bank 5 | . 1 . . . . . 3 1 . . Terminal Index 1 | . . . 1 . . . . . . . Recycling Unit Index 1 | . . . 1 . . . . . . . Alert Level 1 | . . . . . . . 1 . . . Unreport Threat 4 | . . . 1 . . . 3 . . . Locate Traps 2 | . 1 . . . . . 1 . . . Dispatch Records 2 | . . . 2 . . . . . . . Hauler Manifests 6 | . 2 . 2 . . . 1 1 . . Registered Prototypes 1 | . . . . . . . 1 . . . Derelict Proto ID Bank 1 | . . . . . 1 . . . . . Fabricator Hacks 1 | . . . . . . . . . . 1 Network Status 1 | . . . . . . . . . . 1 Repair Station Hacks 7 | . . . . . . . 5 2 . . Scan Component 4 | . . . . . . . 3 1 . . Repair 3 | . . . . . . . 2 1 . . Recycling Unit Hacks 1 | . 1 . . . . . . . . . Retrieve Components 1 | . 1 . . . . . . . . . Scanalyzer 5 | . . . 2 . . . 3 . . . Insert Component 4 | . . . 2 . . . 2 . . . Analyze 1 | . . . . . . . 1 . . . Garrison Access Hacks . | . . . . . . . . . . . Unauthorized Hacks 4 | . 1 . . . . . 3 . . . Terminals 3 | . . . . . . . 3 . . . Botnet 2 | . . . . . . . 2 . . . Operators 1 | . . . . . . . 1 . . . Fabricators . | . . . . . . . . . . . Repair Stations . | . . . . . . . . . . . Recycling Units 1 | . 1 . . . . . . . . . Tunnel 1 | . 1 . . . . . . . . . Scanalyzers . | . . . . . . . . . . . Garrison Access . | . . . . . . . . . . . Data Cores Recovered 2 | . 1 . 1 . . . . . . . Used 2 | . 1 . 1 . . . . . . . Hacking Detections 31 | . 7 . 5 . . . 13 5 . 1 Full Trace Events 3 | . 1 . 1 . . . 1 . . . Feedback Events 1 | . . . 1 . . . . . . . Corruption 1 | . . . 1 . . . . . . . Feedback Blocked . | . . . . . . . . . . . Robot Schematics Acquired . | . . . . . . . . . . . Robots Built . | . . . . . . . . . . . Authchips . | . . . . . . . . . . . Time . | . . . . . . . . . . . Total Robot Build Rating . | . . . . . . . . . . . Part Schematics Acquired 1 | . . . . . . . 1 . . . Parts Built . | . . . . . . . . . . . Authchips . | . . . . . . . . . . . Time . | . . . . . . . . . . . Total Part Build Rating . | . . . . . . . . . . . Parts Repaired 3 | . . . . . . . 2 1 . . Time 77 | . . . . . . . 51 26 . . Parts Recycled . | . . . . . . . . . . . Recycled Matter . | . . . . . . . . . . . Retrieved Matter . | . . . . . . . . . . . Retrieved Components 4 | . 4 . . . . . . . . . Parts Scanalyzed 1 | . . . . . . . 1 . . . Part Schematics Acquired 1 | . . . . . . . 1 . . . Parts Damaged . | . . . . . . . . . . . Bothacking | -11 -10 -10 -9 -9 -9 -8 -8 -7 -7 -7 ------------ Run | Yrd Mat Min Mat Min Exi Min Mat Fac Was Fac Used RIF Installer . | . . . . . . . . . . . Robots Hacked 4 | . . . . . 4 . . . . . Non-combat 3 | . . . . . 3 . . . . . Combat 1 | . . . . . 1 . . . . . Robot Hacks Applied 4 | . . . . . 4 . . . . . parse_system 4 | . . . . . 4 . . . . . Relay Couplers Released . | . . . . . . . . . . . Fabnet Peak Effective % . | . . . . . . . . . . . Robots Rewired . | . . . . . . . . . . . Allies Hacked . | . . . . . . . . . . . Hacks Repelled . | . . . . . . . . . . . Allies | -11 -10 -10 -9 -9 -9 -8 -8 -7 -7 -7 -------- Run | Yrd Mat Min Mat Min Exi Min Mat Fac Was Fac Total Allies 3 | . . . . 3 . . . . . . Largest Group 3 | . . . . 3 . . . . . . Highest-Rated Group 40 | . . . . 40 . . . . . . Highest-Rated Ally 16 | . . . . 16 . . . . . . Total Orders . | . . . . . . . . . . . Ally Attacks 16 | . . . . 16 . . . . . . Total Damage 154 | . . . . 154 . . . . . . Kills 6 | . . . . 6 . . . . . . Allies Corrupted . | . . . . . . . . . . . Allies Melted . | . . . . . . . . . . . Intel | -11 -10 -10 -9 -9 -9 -8 -8 -7 -7 -7 ------- Run | Yrd Mat Min Mat Min Exi Min Mat Fac Was Fac Robot Analysis Total 7 | . 3 . 1 . . . 3 . . . Derelict Logs Recovered 1 | . . . . 1 . . . . . . Drone Launches . | . . . . . . . . . . . Drone Recoveries . | . . . . . . . . . . . Exploration | -11 -10 -10 -9 -9 -9 -8 -8 -7 -7 -7 ------------- Run | Yrd Mat Min Mat Min Exi Min Mat Fac Was Fac Turns Passed 18168 | 4 1530 129 2405 7314 1186 73 3524 1478 158 367 Spaces Moved 7255 | 4 892 72 939 2926 489 30 1177 467 95 164 Core . | . . . . . . . . . . . Treads 6491 | . 355 17 771 2926 489 30 1177 467 95 164 Legs 764 | 4 537 55 168 . . . . . . . Wheels . | . . . . . . . . . . . Hover . | . . . . . . . . . . . Flight . | . . . . . . . . . . . Fastest Speed 120 | 120 120 120 120 240 240 240 240 240 160 160 Average Speed 218 | 120 135 133 202 240 240 240 240 240 160 160 Slowest Speed 240 | 120 160 190 240 240 240 240 240 240 160 160 Overloaded Moves . | . . . . . . . . . . . Propulsion Burnouts . | . . . . . . . . . . . Robots Hopped . | . . . . . . . . . . . Cave-ins Triggered . | . . . . . . . . . . . Exploration Rate (%) 53 | 2 97 19 93 100 78 14 90 12 75 7 Regions Visited 10 Branch Regions 4 Pre-discovered Areas 1 | . 1 . . . . . . . . . Known Exits Taken . | . . . . . . . . . . . Unknown Exits Taken 8 | 1 1 1 1 1 1 1 1 . . . Scrap Searched 1 | . . . . 1 . . . . . . Spaces Dug 42 | . 3 . . 21 . . 12 4 . 2 Terrain Destroyed 326 | . 7 48 123 80 . 11 49 4 . 4 Melee 18 | . 3 . . 7 . . 2 4 . 2 Projectile 26 | . . . . 24 . . . . . 2 AOE 282 | . 4 48 123 49 . 11 47 . . . Terrain Rammed . | . . . . . . . . . . . Walls Destroyed . | . . . . . . . . . . . Machines Disabled . | . . . . . . . . . . . Actions | -11 -10 -10 -9 -9 -9 -8 -8 -7 -7 -7 --------- Run | Yrd Mat Min Mat Min Exi Min Mat Fac Was Fac Total 8824 | 3 1064 98 1265 3115 500 30 1704 723 102 220 Wait 706 | . 28 . 92 88 . . 328 155 . 15 Move 7246 | 3 891 71 938 2925 488 29 1176 467 94 164 Hop . | . . . . . . . . . . . Pick Up 108 | . 15 4 37 6 2 . 23 12 3 6 Fast Attach 27 | . 3 3 12 1 . . 4 2 . 2 Attach 23 | . 1 . 5 3 2 . 4 4 . 4 Detach 10 | . . . 6 1 2 . . 1 . . Swap 132 | . 14 5 40 19 2 . 35 12 2 3 Drop 128 | . 17 7 39 7 . . 39 14 3 2 Fire 368 | . 50 8 95 52 . 1 88 52 . 22 Melee 69 | . 44 . . 9 4 . 6 4 . 2 Ram . | . . . . . . . . . . . Kick 1 | . 1 . . . . . . . . . Crush 6 | . . . 1 4 . . 1 . . . Escape Stasis . | . . . . . . . . . . . Rewire . | . . . . . . . . . . . Trap . | . . . . . . . . . . . Miscellaneous . | . . . . . . . . . . . Route ------- -11/Scrapyard -10/Materials (discovered 5 exits: *Mat x3 / [*Min x2]) -10/Mines -9/Materials (discovered 5 exits: *Mat x3 / [*Min] / [*Sto]) -9/Mines (discovered 3 exits: *Mat x2 / *Exi) -9/Exiles -8/Mines -8/Materials (discovered 3 exits: *Fac x3) -7/Factory -7/Waste -7/Factory History --------- Turn | Location | Event 1 | -11/Scrapyard | Discovered new exit (range 1) 5 | -11/Scrapyard | Entered Materials 231 | -10/Materials | Discovered new exit (range 6) 335 | -10/Materials | Build established: Mutant 394 | -10/Materials | Discovered new exit (range 11) 728 | -10/Materials | Discovered new exit (range 8) 966 | -10/Materials | Discovered new exit (range 15) 1217 | -10/Materials | Discovered new exit (range 16) 1522 | -10/Materials | Core integrity fell below 50% 1535 | -10/Materials | Entered Mines 1659 | -10/Mines | Discovered new exit (range 5) 1664 | -10/Mines | Entered Materials 1664 | -9/Materials | Evolved 2 slots: Propulsion x1, Utility x1 1879 | -9/Materials | Build established: Scavenger-Mutant 1905 | -9/Materials | Destroyed 7 combat bots 1936 | -9/Materials | Discovered new exit (range 15) 2092 | -9/Materials | Central database locked down 2409 | -9/Materials | Discovered new exit (range 13) 2452 | -9/Materials | Destroyed 7 combat bots 2864 | -9/Materials | First assault squad dispatched 3304 | -9/Materials | Discovered new exit (range 14) 3471 | -9/Materials | Build established: Mutant 3877 | -9/Materials | Discovered new exit (range 8) 3910 | -9/Materials | Discovered new exit (range 16) 4041 | -9/Materials | Build established: Scavenger-Mutant 4069 | -9/Materials | Entered Mines 4183 | -9/Mines | Assembled infested the area 4188 | -9/Mines | Discovered new exit (range 7) 4254 | -9/Mines | Lost 3 parts (1n1u1w) 4299 | -9/Mines | Found a damaged Exp. Sensor Array with a note attached 4304 | -9/Mines | Found Prototype Device 4517 | -9/Mines | Assisted by bots powering up and referring to "LRC-V3" 4606 | -9/Mines | Learned Materials terminal intel 4608 | -9/Mines | Joined a pair of Derelicts in attacking an 0b10 outpost 4687 | -9/Mines | Discovered new exit (range 10) 4701 | -9/Mines | Received a Rocket Launcher from a helpful Derelict 4838 | -9/Mines | Discovered new exit (range 9) 11383 | -9/Mines | Entered Exiles 11445 | -9/Exiles | Met 8R-AWN 11484 | -9/Exiles | Met EX-HEX 11659 | -9/Exiles | Met EX-BIN 11694 | -9/Exiles | Aligned with FarCom system 11697 | -9/Exiles | Given EX-Vault access code 11754 | -9/Exiles | Opened EX-Vault 11769 | -9/Exiles | Found 0b10 Alert Chip 11822 | -9/Exiles | Warned to stay clear of 0b10 Research branches 11892 | -9/Exiles | Met EX-DEC 12285 | -9/Exiles | Visited The Gauntlet 12537 | -9/Exiles | Discovered new exit (range 14) 12569 | -9/Exiles | Left Exiles lab with 0b10 Alert Chip 12569 | -9/Exiles | Entered Mines 12608 | -8/Mines | Discovered new exit (range 15) 12642 | -8/Mines | Entered Materials 12642 | -8/Materials | Evolved 2 slots: Propulsion x1, Utility x1 12643 | -8/Materials | Loaded intel: 12 terminal locations 13146 | -8/Materials | Repaired Lgt. Treads 14629 | -8/Materials | Discovered new exit (range 8) 15136 | -8/Materials | Discovered new exit (range 3) 15547 | -8/Materials | Repaired Hrd. Medium Armor Plating 15841 | -8/Materials | Discovered new exit (range 7) 16166 | -8/Materials | Entered Factory 16166 | -7/Factory | Evolved 2 slots: Utility x2 16463 | -7/Factory | Build established: Scavenger-Assassin 16785 | -7/Factory | Repaired Lgt. Treads 17003 | -7/Factory | Build established: Scavenger-Skirmisher 17644 | -7/Factory | Sucked down chute 17644 | -7/Factory | Entered Waste 17659 | -7/Waste | EMP discharged 17659 | -7/Waste | System corruption reached 10% 17672 | -7/Waste | Spotted C-40 Crusher 17695 | -7/Waste | Spotted C-40 Crusher 17697 | -7/Waste | Spotted C-40 Crusher 17697 | -7/Waste | Spotted C-40 Crusher 17724 | -7/Waste | Spotted C-40 Crusher 17726 | -7/Waste | Spotted C-40 Crusher 17758 | -7/Waste | Crushed by Compactor (1 part destroyed, 1 dropped) 17759 | -7/Waste | EMP discharged 17780 | -7/Waste | Crushed by Compactor (1 part destroyed, 1 dropped) 17788 | -7/Waste | Discovered new exit (range 10) 17802 | -7/Waste | Entered Factory 18108 | -7/Factory | Garrison activated, responded to threat 18169 | -7/Factory | Self-destructed Last Messages --------------- 18075_ Dropped Flak Gun. 18075_ Acquired Imp. Trap Extractor. 18094_ System corrupted: Energy discharge (-78). 18108_ P-60 Hacker calls for garrison reinforcements. 18108_ ALERT: Activating Garrison Access F003. 18120_ Destroyed Shock Rifle. 18120_ P-60 Hacker knocked back. 18123_ Destroyed Shock Rifle. 18123_ P-60 Hacker knocked back. 18128_ System corrupted: Adv. Assault Cannon fused. 18128_ >> Machine Analyzer network decryption results: 18128_ Terminal x2 18143_ 28KF/K>NEQDW2KCCMQV9N=GTN:F=A5X PWJIMKIR 18149_ System corrupted: Hvy. Particle Gun failed to cycle. 18155_ Y-54 Guardian destroyed. 18156_ R-06 Scavenger collects Flak Gun. 18158_ Y-54 Guardian suffers critical hit (Burn). 18161_ System corrupted: Structural Scanner rejected. 18165_ R-06 Scavenger collects Structural Scanner. 18168_ Hrd. Medium Armor Plating destroyed. Map ----- +----------------------------------------------------+ | ????????????????????? # ##### # ## | | ????????????????????? # ##### # ## | | ????????????????""""? ### ######+#+##### + ## | | ????????????????""""? ### # # # ## | | ????????????????""""????? # """ """ # #[ ## | | ????????????????""""????? # """ """ # ####+#### | | ????????????????""""????? # """ """ # #### #### | | ????????????????""""????? # # #### # %/ | | ????????????????""""????? # """ """ !# #### ##[ | | ????????????????????????? # """ """ # #### ##=" | | ????????????????????????? + """ """ # ### # " | | ?????????????????????????## ! + *+%" | | ?????????????????????????## ##### #[= | | ?????????????????????????## ######### | | ????????????############### ##?###### | | ????????????#############################?????#### | | ????????????## ^ ##########?????#### | | ????????????## ##????????????????? | | ????????????##"" ! """"""" ########??????????? | | ????????????##" [ """"""" ###########???????? | | ????????????##"F ^ """"""" # + ???????? | | ????????????##"" ^ """"""" # """ ##???????? | | ????????????## # """ ##???????? | | ????????????##########+######### """ ##???????? | | ????????????######### ########[ ##???????? | | ??????????????????? # /@ # """ # ???????? | | ??????????????????? # # | # """ # ???????? | | ??????????????????? # # % # """ # ???????? | | ??????????????????? # #r # # ???????? | | ??????????????????? # # Y;/ """ # ???????? | | ??????????????????? # # %%% %""" =# ???????? | | ??????????????????? + # # %""" # ???????? | | ???????????????????## # # % ##???????? | | ??????????????????? # # ! # ! """ + ????? | | ??????????????????? # # ] # """ ## ##????? | | ??????????????????? # # # """ ## ##????? | | ??????????????????? # + # ##???????? | | ??????????????????? # p# # ##???????? | | ??????????????????? # #########+######?????????? | | ??????????????????? # ?????????? | | ????????????????????????????????? ??????????????? | | ????????????????????????????????? ??????????????? | | ?????????????????????????????""""""?""""""???????? | | ?????????????????????????????""""""?""""""???????? | | ?????????????????????????????""""""?""""""???????? | | ?????????????????????????????""""""?""""""???????? | | ?????????????????????????????????????????????????? | | ?????????????????????????????""""""?""""""???????? | | ?????????????????????????????""""""?""""""???????? | | ?????????????????????????????""""""?""""""???????? | +----------------------------------------------------+ Best States ------------- Heat Dissipation 75 Energy Generation 17 Energy Capacity 300 Matter Stores 300 Matter Capacity 300 Sight Range 16 Terrain Scan Range 14 Terrain Scan Density 10 Armor Coverage 225 Evasion (%) 55 Targeting Accuracy 6 Recoil Reduction 4 Offensive Hacking 10 Item Schematics ----------------- Imp. Light Armor Plating | -8/Materials | Scanalyzed Robot Schematics ------------------ None Fabricated ------------ Nothing Alien Tech Used ----------------- None Achievements -------------- None Challenges ------------ None Game ------ Seed RegenerativeThermalWell Manual? 0 Play Time 02:07:34 Cumulative 410.3 hours Start 2024.05.23 @ 14:42:13 End 2024.05.26 @ 21:54:31 Sessions 7 Manual Loads 0 Difficulty Rogue Special Mode None Game No. 129 Rogue 90 Adventurer 0 Explorer 39 Win Type - Total 12 Types 10/1/1/0/0/0/0/0/0 Lore% 74 Gallery% 80 Achievement% 69 Wizard Run 0 Options --------- Layout 0 ASCII 1 Keyboard 1 Movement Arrows Keybinds 0 Fullscreen 2 Font 36/Smallcaps Map View 76x50 Zoom Use 0% Tactical HUD 1 Map Filters NONE Filters NONE Steam 1 RUN: 038b6da0-0afa-4a50-bacd-d7d79e7a6435